Workbook

Sheet WSSPC Cooperative Agreement
A1: PLANNED TASKS / EXPENSES | B1: Aug 2018 | C1: Sep 2018 | E1: Oct 2018 | F1: Nov 2018 | G1: Dec 2018 | I1: Jan 2019 | J1: Feb 2019 | K1: Mar 2019 | M1: Apr 2019 | N1: May 2019 | O1: Jun 2019 | Q1: Jul 2019
D2: 4th Quarter | H2: 1st Quarter | L2: 2nd Quarter | P2: 3rd Quarter
A3: SUMMARY PLANNED COSTS
A4: Total BASE PLAN Amount | B4: 227000
A5: Amt Budgeted Per Month | B5: =B13 -> 16249 | C5: 16549 | E5: 16379 | F5: 19923 | G5: 18309 | I5: 19279 | J5: 20713.15 | K5: 18123.02 | M5: 17410 | N5: 30829.85 | O5: 16549 | Q5: 16686.98
A6: Cumulative Amount Budgeted | B6: =B5 -> 16249 | C6: =B6+C5 -> 32798 | E6: =C6+E5 -> 49177 | F6: 69100 | G6: 87409 | I6: =G6+I5 -> 106688 | J6: 127401.15 | K6: 145524.17 | M6: =K6+M5 -> 162934.17 | N6: 193764.02 | O6: 210313.02 | Q6: =O6+Q5 -> 227000
A7: Cumulative Budget Remaining | B7: =B4-B6 -> 210751 | C7: =B4-C6 -> 194202 | E7: =B4-E6 -> 177823 | F7: =B4-F6 -> 157900 | G7: =B4-G6 -> 139591 | I7: =B4-I6 -> 120312 | J7: =B4-J6 -> 99598.85 | K7: =B4-K6 -> 81475.83 | M7: =B4-M6 -> 64065.83 | N7: =B4-N6 -> 33235.98 | O7: =B4-O6 -> 16686.98 | Q7: =B4-Q6 -> 0
A8: SUMMARY ACTUAL COSTS
A9: Amt Expended Per Month
A10: Amount Expended to Date
A11: Cumulative Funds Remaining | S11: Subtask
R12: TOTAL | S12: TOTAL
A13: PLANNED MONTHLY COSTS - BASE PLAN $227,000 | B13: 16249 | C13: 16549 | E13: 16379 | F13: 19923 | G13: 18309 | I13: 19279 | J13: 20713.15 | K13: 18123.02 | M13: 17410 | N13: 30829.85 | O13: 16549 | Q13: 16686.98 | R13: =SUM(B13:Q13) -> 227000
A15: TASK 1.0 DEVELOP SEISMIC POLICIES | B15: =B16+B17 -> 1300 | C15: 1037.26 | D15: =B15+C15 -> 2337.26 | E15: 1949.21 | F15: 6008.7 | G15: 2018.94 | H15: =SUM(E15:G15) -> 9976.85 | I15: 1560.21 | J15: 2672.55 | K15: 2399.95 | L15: =SUM(I15:K15) -> 6632.71 | M15: 2474.2 | N15: =N16+N17 -> 7550.1 | O15: =O16+O17 -> 2597 | P15: =SUM(M15:O15) -> 12621.3 | Q15: =Q16+Q17 -> 1130.1 | R15: =D15+H15+L15+P15+Q15 -> 32698.22
A16: 1.1 Develop & Encourage Adoption of Policy Recommendations | B16: 600 | C16: 500 | E16: 749.21 | F16: 998.5 | G16: 400 | I16: 800 | J16: 910.55 | K16: 900 | M16: 974.2 | N16: 1118 | O16: 1097 | Q16: 800 | S16: =SUM(B16:Q16) -> 9847.46
A17: 1.2 Conduct Board Meetings | B17: 700 | C17: 537.26 | E17: 1200 | F17: 5010.2 | G17: 1618.94 | I17: 760.21 | J17: 1762 | K17: 1499.95 | M17: 1500 | N17: 6432.1 | O17: 1500 | Q17: 330.1 | S17: =SUM(B17:Q17) -> 22850.76
A18: TASK 2.0 PROVIDE FORUMS | B18: =B19+B20 -> 1500 | C18: 1002.89 | D18: =B18+C18 -> 2502.89 | E18: 896.44 | F18: 697 | G18: 637.15 | H18: =SUM(E18:G18) -> 2230.59 | I18: 1138.56 | J18: 2615 | K18: 2142.47 | L18: =SUM(I18:K18) -> 5896.03 | M18: 2630.45 | N18: 11058.05 | O18: 2100 | P18: =SUM(M18:O18) -> 15788.5 | Q18: 0 | R18: =D18+H18+L18+P18+Q18 -> 26418.01
A19: 2.1 Hold WSSPC Annual Meeting (including Awards) | B19: 1200 | C19: 762.89 | E19: 697.25 | F19: 200 | G19: 400 | I19: 938 | J19: 1215 | K19: 1199 | M19: 1630.45 | N19: 7058.05 | O19: 1600 | Q19: 0 | S19: =SUM(B19:Q19) -> 16900.64
A20: 2.2 Earthquake Program Managers Meeting | B20: 300 | C20: 240 | E20: 199.19 | F20: 497 | G20: 237.15 | I20: 200.56 | J20: 1400 | K20: 943.47 | M20: 1000 | N20: 4000 | O20: 500 | Q20: 0 | S20: =SUM(B20:Q20) -> 9517.37
A21: TASK 3.0 PROVIDE OUTREACH AND EDUCATION | B21: =SUM(B22:B25) -> 5960.98 | C21: =SUM(C22:C25) -> 6771.15 | D21: =B21+C21 -> 12732.13 | E21: =SUM(E22:E25) -> 5985 | F21: =SUM(F22:F25) -> 3636.29 | G21: 6130.46 | H21: =SUM(E21:G21) -> 15751.75 | I21: 4602.05 | J21: 5821.54 | K21: 7352.49 | L21: =SUM(I21:K21) -> 17776.08 | M21: 5197.73 | N21: 4942.43 | O21: 5952.1 | P21: =SUM(M21:O21) -> 16092.26 | Q21: 5847.38 | R21: =D21+H21+L21+P21+Q21 -> 68199.6
A22: 3.1 Website | B22: 1718.88 | C22: 2041.41 | E22: 2200 | F22: 1417 | G22: 1812 | I22: 1200 | J22: 1550 | K22: 1355 | M22: 1600 | N22: 2042 | O22: 2160 | Q22: 2100 | S22: =SUM(B22:Q22) -> 21196.29
A23: 3.2 Quarterly Electronic Newsletter & Monthly Bulletins | B23: 3154.64 | C23: 3455.74 | E23: 2885 | F23: 2219.29 | G23: 3318 | I23: 2299.05 | J23: 2296.54 | K23: 4097.49 | M23: 2600.03 | N23: 2900.43 | O23: 3792.1 | Q23: 3247.38 | S23: =SUM(B23:Q23) -> 36265.69
A24: 3.3 Annual Report | B24: 0 | C24: 0 | E24: 0 | F24: 0 | G24: 1000.46 | I24: 1103 | J24: 1975 | K24: 1600 | M24: 997.7 | N24: 0 | O24: 0 | Q24: 0 | S24: =SUM(B24:Q24) -> 6676.16
A25: 3.4 Conduct Community Education and Outreach | B25: 1087.46 | C25: 1274 | E25: 900 | F25: 0 | G25: 0 | I25: 0 | J25: 0 | K25: 300 | M25: 0 | N25: 0 | O25: 0 | Q25: 500 | S25: =SUM(B25:Q25) -> 4061.46
A26: TASK 4.0 MAINTAIN & ENCOURAGE PARTNERSHIPS | B26: =B27+B28 -> 538 | C26: 878.04 | D26: =B26+C26 -> 1416.04 | E26: 780.96 | F26: 930.62 | G26: 930 | H26: =SUM(E26:G26) -> 2641.58 | I26: 510.2 | J26: 761.06 | K26: 313.75 | L26: =SUM(I26:K26) -> 1585.01 | M26: 242.19 | N26: 201.29 | O26: 399.9 | P26: =SUM(M26:O26) -> 843.38 | Q26: 581.06 | R26: =D26+H26+L26+P26+Q26 -> 7067.07
A27: 4.1 Maintain & Encourage Partnerships | B27: 152 | C27: 300 | E27: 278.36 | F27: 430 | G27: 130 | I27: 100 | J27: 381.06 | K27: 213.75 | M27: 242.19 | N27: 201.29 | O27: 399.9 | Q27: 581.06 | S27: =SUM(B27:Q27) -> 3409.61
A28: 4.2 Affiliate Member Program | B28: 386 | C28: 578.04 | E28: 502.6 | F28: 500.62 | G28: 800 | I28: 410.2 | J28: 380 | K28: 100 | M28: 0 | N28: 0 | O28: 0 | Q28: 0 | S28: =SUM(B28:Q28) -> 3657.46
A29: TASK 5.0 FINANCIAL AND GRANTS MANAGEMENT | B29: =SUM(B30:B32) -> 6950.02 | C29: 6859.66 | D29: =B29+C29 -> 13809.68 | E29: 6067.39 | F29: 8650.39 | G29: 8592.45 | H29: =SUM(E29:G29) -> 23310.23 | I29: 10667.98 | J29: 8843 | K29: 5914.36 | L29: =SUM(I29:K29) -> 25425.34 | M29: 5965.43 | N29: 7077.98 | O29: 5500 | P29: =SUM(M29:O29) -> 18543.41 | Q29: 7928.44 | R29: =D29+H29+L29+P29+Q29 -> 89017.1
A30: 5.1 Manage Cooperative Agreement | B30: 1650 | C30: 1800 | E30: 1188 | F30: 1350 | G30: 972.45 | I30: 1200 | J30: 1975 | K30: 950 | M30: 1465 | N30: 1377.7 | O30: 700 | Q30: 1400 | S30: =SUM(B30:Q30) -> 16028.15
A31: 5.2 Manage WSSPC Finances | B31: 1700 | C31: 1959.66 | E31: 1879.39 | F31: 1100.39 | G31: 2120 | I31: 4667.98 | J31: 3268 | K31: 2527 | M31: 2300 | N31: 2600.28 | O31: 1900 | Q31: 1728.44 | S31: =SUM(B31:Q31) -> 27751.14
A32: 5.3 Maintain Office and Support Personnel | B32: 3600.02 | C32: 3100 | E32: 3000 | F32: 6200 | G32: 5500 | I32: 4800 | J32: 3600 | K32: 2437.36 | M32: 2200.43 | N32: 3100 | O32: 2900 | Q32: 4800 | S32: =SUM(B32:Q32) -> 45237.81
A33: TASK 6.0 OUTCOMES REPORT | B33: 0 | C33: 0 | D33: =B33+C33 -> 0 | E33: 700 | F33: 0 | G33: 0 | H33: =SUM(E33:G33) -> 700 | I33: 800 | J33: 0 | K33: 0 | L33: =SUM(I33:K33) -> 800 | M33: 900 | N33: 0 | O33: 0 | P33: =SUM(M33:O33) -> 900 | Q33: 1200 | R33: =D33+H33+L33+P33+Q33 -> 3600
A34: 6.1 Quarterly Outcomes Report | B34: 0 | C34: 0 | E34: 700 | F34: 0 | G34: 0 | I34: 800 | J34: 0 | K34: 0 | M34: 900 | N34: 0 | O34: 0 | Q34: 400 | S34: =SUM(B34:Q34) -> 2800
A35: 6.2 Final Outcomes Report | Q35: 800 | S35: =SUM(B35:Q35) -> 800
A36: PLANNED MONTHLY COSTS | B36: =B15+B18+B21+B26+B29+B33 -> 16249 | C36: =C15+C18+C21+C26+C29+C33 -> 16549 | E36: =E15+E18+E21+E26+E29+E33 -> 16379 | F36: =F15+F18+F21+F26+F29+F33 -> 19923 | G36: =G15+G18+G21+G26+G29+G33 -> 18309 | I36: =I15+I18+I21+I26+I29+I33 -> 19279 | J36: 20713.15 | K36: 18123.02 | M36: 17410 | N36: 30829.85 | O36: 16549 | Q36: 16686.98 | R36: =SUM(R15:R33) -> 227000 | S36: =SUM(S16:S35) -> 227000
A37: QUARTER TOTALS | D37: =SUM(D15:D33) -> 32798 | H37: =SUM(H15:H33) -> 54611 | L37: =SUM(L15:L33) -> 58115.17 | P37: =SUM(P15:P33) -> 64788.85 | Q37: =Q36 -> 16686.98
A42: PLANNED MONTHLY COSTS - STATE SUPPORT | B42: Aug 2018 | C42: Sep 2018 | E42: Oct 2018 | F42: Nov 2018 | G42: Dec 2018 | I42: Jan 2019 | J42: Feb 2019 | K42: Mar 2019 | M42: Apr 2019 | N42: May 2019 | O42: Jun 2019 | Q42: Jul 2019 | R42: TOTAL
A43: 176547 | D43: 4th Quarter | H43: 1st Quarter | L43: 2nd Quarter | P43: 3rd Quarter | R43: STATES
A44: 7.1 GUAM $30,000 | E44: 8000 | H44: =E44 -> 8000 | I44: 3000 | J44: 7000 | K44: 12000 | L44: =SUM(I44:K44) -> 22000 | R44: =B44+C44+E44+F44+G44+I44+J44+K44+M44+N44+O44+Q44 -> 30000
A45: 7.2.1 HAWAII-1 $15,000 | C45: 3750 | D45: =C45 -> 3750 | G45: 3750 | H45: =G45 -> 3750 | K45: 3750 | L45: =K45 -> 3750 | O45: 3750 | P45: =O45 -> 3750 | R45: 15000
A46: 7.2.2 HAWAII -2 $15,000 | B46: 8000 | D46: =B46 -> 8000 | J46: 7000 | L46: =J46 -> 7000 | R46: 15000
A47: 7.3 IDAHO $30,424 | K47: 3000 | L47: =K47 -> 3000 | M47: 6060 | P47: =M47 -> 6060 | Q47: 21364 | R47: 30424
A48: 7.4 NEVADA $35,123 | C48: 18000 | D48: =C48 -> 18000 | M48: 17123 | P48: =M48 -> 17123 | R48: 35123
A49: 7.5 WYOMING $27,000 | C49: 9000 | D49: =C49 -> 9000 | E49: 9000 | F49: 9000 | H49: =E49+F49 -> 18000 | R49: 27000
A50: 7.6 EARTHQUAKE PROGRAM MANAGERS $24,000 | N50: 24000 | P50: =N50 -> 24000 | R50: 24000
A51: American Samoa, CNMI. Guam, Hawaii, Idaho, Nevada, New Mexico, Washington, Wyoming | R51: =SUM(R44:R50) -> 176547
A52: MONTHLY TOTALS | B52: =SUM(B44:B50) -> 8000 | C52: =SUM(C44:C50) -> 30750 | E52: =SUM(E44:E50) -> 17000 | F52: =SUM(F44:F50) -> 9000 | G52: =SUM(G44:G50) -> 3750 | I52: =SUM(I44:I50) -> 3000 | J52: =SUM(J44:J50) -> 14000 | K52: =SUM(K44:K50) -> 18750 | M52: =SUM(M44:M50) -> 23183 | N52: =SUM(N44:N50) -> 24000 | O52: =SUM(O44:O50) -> 3750 | Q52: =SUM(Q44:Q50) -> 21364
A53: QUARTER TOTALS | D53: =SUM(D44:D51) -> 38750 | H53: =SUM(H44:H50) -> 29750 | L53: =SUM(L44:L50) -> 35750 | P53: =SUM(P44:P50) -> 50933 | Q53: =Q52 -> 21364 | R53: =SUM(D53+H53+L53+P53+Q53) -> 176547
A58: ACTUAL TASKS / EXPENSES | B58: Aug 2018 | C58: Sep 2018 | D58: 4th Quarter | E58: Oct 2018 | F58: Nov 2018 | G58: Dec 2018 | H58: 1st Quarter | I58: Jan 2019 | J58: Feb 2019 | K58: Mar 2019 | L58: 2nd Quarter | M58: Apr 2019 | N58: May 2019 | O58: Jun 2019 | P58: 3rd Quarter | Q58: Jul 2019
A61: ACTUAL MONTHLY COST - BASE PLAN
A62: TASK 1.0 DEVELOP SEISMIC POLICIES | B62: =B63+B64 -> 0 | C62: =C63+C64 -> 0 | E62: =E63+E64 -> 0 | F62: =F63+F64 -> 0 | G62: =G63+G64 -> 0 | I62: 0 | J62: 0 | K62: 0 | M62: 0 | N62: 0 | O62: 0 | Q62: 0
A63: 1.1 Develop & Encourage Adoption of Policy Recommendations
A64: 1.2 Conduct Board Meetings
A65: TASK 2.0 PROVIDE FORUMS | B65: =B66+B67 -> 0 | C65: =C66+C67 -> 0 | E65: =E66+E67 -> 0 | F65: =F66+F67 -> 0 | G65: =G66+G67 -> 0 | I65: 0 | J65: 0 | K65: 0 | M65: 0 | N65: 0 | O65: 0 | Q65: 0
A66: 2.1 Hold WSSPC Annual Meeting (including Awards)
A67: 2.2 Earthquake Program Managers Meeting
A68: TASK 3.0 PROVIDE OUTREACH/PUBLIC EDUCATION | B68: =B69+B70+B71+B72 -> 0 | C68: =C69+C70+C71+C72 -> 0 | E68: =E69+E70+E71+E72 -> 0 | F68: =F69+F70+F71+F72 -> 0 | G68: =G69+G70+G71+G72 -> 0 | I68: 0 | J68: 0 | K68: 0 | M68: 0 | N68: 0 | O68: 0 | Q68: 0
A69: 3.1 Website
A70: 3.2 Quarterly Electronic Newsletter & Monthly Bulletins
A71: 3.3 Annual Report
A72: 3.4 Conduct Community Education and Outreach
A73: TASK 4.0 MAINTAIN & ENCOURAGE PARTNERSHIPS | B73: =B74+B75 -> 0 | C73: =C74+C75 -> 0 | E73: =E74+E75 -> 0 | F73: =F74+F75 -> 0 | G73: =G74+G75 -> 0 | I73: 0 | J73: 0 | K73: 0 | M73: 0 | N73: 0 | O73: 0 | Q73: 0
A74: 4.1 Maintain & Encourage Partnerships
A75: 4.2 Affiliate Member Program
A76: TASK 5.0 FINANCIAL AND GRANTS MANAGEMENT | B76: =B77+B78+B79 -> 0 | C76: =C77+C78+C79 -> 0 | E76: =E77+E78+E79 -> 0 | F76: =F77+F78+F79 -> 0 | G76: =G77+G78+G79 -> 0 | I76: 0 | J76: 0 | K76: 0 | M76: 0 | N76: 0 | O76: 0 | Q76: 0
A77: 5.1 Manage Cooperative Agreement
A78: 5.2 Manage WSSPC Finances
A79: 5.3 Maintain Office and Support Personnel
A80: TASK 6.0 OUTCOMES REPORT | B80: =B81+B82 -> 0 | C80: =C81+C82 -> 0 | E80: =E81+E82 -> 0 | F80: =F81+F82 -> 0 | G80: =G81+G82 -> 0 | I80: 0 | J80: 0 | K80: 0 | M80: 0 | N80: 0 | O80: 0 | Q80: 0
A81: 6.1 Prepare quarterly Outcomes Reports
A82: 6.2 Prepare final Outcomes Report
A95: ACTUAL MONTHLY COST - STATE SUPPORT | B95: Aug 2018 | C95: Sep 2018 | E95: Oct 2018 | F95: Nov 2018 | G95: Dec 2018 | I95: Jan 2019 | J95: Feb 2019 | K95: Mar 2019 | M95: Apr 2019 | N95: May 2019 | O95: Jun 2019 | Q95: Jul 2019 | R95: TOTAL
A96: 176547 | D96: 4th Quarter | H96: 1st Quarter | L96: 2nd Quarter | P96: 3rd Quarter | R96: STATES
A97: 7.1 GUAM $30,000 | R97: =B97+C97+E97+F97+G97+I97+J97+K97+M97+N97+O97+Q97 -> 0
A98: 7.2.1 HAWAII-1 $15,000 | R98: 0
A99: 7.2.2 HAWAII -2 $15,000 | R99: 0
A100: 7.3 IDAHO $30,424 | R100: 0
A101: 7.4 NEVADA $35,123 | R101: 0
A102: 7.5 WYOMING $27,000 | R102: 0
A103: 7.6 EARTHQUAKE PROGRAM MANAGERS $24,000 | R103: 0
A104: American Samoa, CNMI. Guam, Hawaii, Idaho, Nevada, New Mexico, Washington, Wyoming | R104: =SUM(R97:R103) -> 0
A105: MONTHLY TOTALS | B105: =SUM(B97:B103) -> 0 | C105: =SUM(C97:C103) -> 0 | E105: =SUM(E97:E103) -> 0 | F105: =SUM(F97:F103) -> 0 | G105: =SUM(G97:G103) -> 0 | I105: =SUM(I97:I103) -> 0 | J105: =SUM(J97:J103) -> 0 | K105: =SUM(K97:K103) -> 0 | M105: =SUM(M97:M103) -> 0 | N105: =SUM(N97:N103) -> 0 | O105: =SUM(O97:O103) -> 0 | Q105: =SUM(Q97:Q103) -> 0
A106: QUARTER TOTALS | D106: =SUM(D97:D104) -> 0 | H106: =SUM(H97:H103) -> 0 | L106: =SUM(L97:L103) -> 0 | P106: =SUM(P97:P103) -> 0 | Q106: =Q105 -> 0 | R106: =SUM(D106+H106+L106+P106+Q106) -> 0
